bitfinex/quotes_BTCUSD_20250825
["timestamp","ask_amount","ask_price","bid_price","bid_amount"]
[1756121711126,0.01506778,111250.0,111240.0,0.08688475]
[1756121712428,0.01506778,111250.0,111240.0,0.08913214]
[1756121712868,0.001,111250.0,111240.0,0.08913214]
[1756121713087,0.18480528,111250.0,111240.0,0.08688475]
[1756121713306,0.19686675,111260.0,111240.0,0.08688475]
[1756121713511,0.21362417,111260.0,111240.0,0.08688475]
[1756121713720,0.00503,111250.0,111240.0,0.08688475]
[1756121714164,0.19382675,111260.0,111240.0,0.08688475]
[1756121714374,0.19382675,111260.0,111250.0,0.00431225]
[1756121714375,0.03082489,111260.0,111250.0,0.00431225]
[1756121714583,0.01406612,111260.0,111250.0,0.27097228]
[1756121714820,0.01406612,111260.0,111250.0,0.1737544]
[1756121715039,0.01406612,111260.0,111250.0,0.28635624]
[1756121715282,0.01406612,111260.0,111250.0,0.28410905]
[1756121715921,0.18276842,111280.0,111250.0,0.28410905]
[1756121716135,0.0282412,111280.0,111260.0,0.08913173]
[1756121716347,0.01406351,111270.0,111260.0,0.28409251]
[1756121716580,0.01406351,111270.0,111260.0,1.21004174]
[1756121716788,0.21076115,111300.0,111270.0,0.19719198]
[1756121717000,0.06128901,111300.0,111280.0,0.08688475]
[1756121717218,0.04233829,111300.0,111280.0,0.08688475]
[1756121717437,0.02538101,111300.0,111290.0,0.17971066]
[1756121717655,0.01696889,111300.0,111290.0,0.12848927]
[1756121718521,0.01696889,111300.0,111290.0,0.13279944]
[1756121719816,0.01696889,111300.0,111290.0,1.22269131]
[1756121720035,0.01696889,111300.0,111290.0,1.21838114]
[1756121720250,0.00014465,111300.0,111290.0,1.55838114]
[1756121720503,0.00014465,111300.0,111290.0,1.56496114]
[1756121720924,0.00014465,111300.0,111290.0,1.56796114]
[1756121721143,0.00014465,111300.0,111290.0,0.72788156]
[1756121721356,0.00014465,111300.0,111290.0,1.56696114]
[1756121721569,0.00014465,111300.0,111290.0,1.57096114]
[1756121722195,0.00014465,111300.0,111290.0,1.56896114]
[1756121722424,0.00014465,111300.0,111290.0,1.56496114]
[1756121722638,0.00014465,111300.0,111290.0,0.73988156]
[1756121722840,0.00014465,111300.0,111290.0,1.82896114]
[1756121723102,0.00014465,111300.0,111290.0,0.98988156]
[1756121723337,0.00014465,111300.0,111290.0,2.66804072]
[1756121723550,0.00014465,111300.0,111290.0,3.06804072]
[1756121723996,0.00014465,111300.0,111290.0,3.25552894]
[1756121724204,0.00014465,111300.0,111290.0,3.29661954]
[1756121724424,0.00014465,111300.0,111290.0,3.29261954]
[1756121724666,0.00324,111360.0,111290.0,3.29261954]
[1756121724667,0.0002,111360.0,111340.0,0.01744902]
[1756121724870,0.0002,111360.0,111340.0,0.0380545]
[1756121724871,0.00503,111350.0,111340.0,0.0380545]
[1756121725515,0.00503,111350.0,111340.0,0.12493925]
[1756121726192,0.18464383,111350.0,111340.0,0.10433377]
[1756121726413,0.18464383,111350.0,111340.0,0.10533377]
[1756121726880,0.18464383,111350.0,111340.0,0.08788475]
[1756121727751,0.18464383,111350.0,111340.0,0.001]
[1756121727976,0.20130791,111350.0,111340.0,0.001]
[1756121728622,0.17963464,111340.0,111310.0,0.01744902]
[1756121728826,0.17964736,111330.0,111320.0,0.10433377]
[1756121729047,0.18467736,111330.0,111320.0,0.10433377]
[1756121729503,0.00503,111330.0,111320.0,0.10433377]
[1756121729717,0.18467609,111330.0,111320.0,0.10433377]
[1756121729952,0.18467609,111330.0,111320.0,0.08688475]
[1756121730603,0.18467609,111330.0,111320.0,0.08788475]
[1756121730821,0.18467609,111330.0,111320.0,0.09988475]
[1756121731279,0.18467609,111330.0,111320.0,0.013]
[1756121731921,0.20133793,111330.0,111320.0,0.013]
[1756121732124,0.20133793,111330.0,111320.0,0.09988475]
[1756121732357,0.20133793,111330.0,111320.0,0.111119]
[1756121732569,0.00304,111340.0,111320.0,0.12863091]
[1756121732787,0.18267147,111340.0,111330.0,0.08688475]
[1756121733008,0.18466147,111340.0,111330.0,0.08688475]
[1756121736203,0.18466147,111340.0,111330.0,0.08788475]
[1756121736491,0.18466147,111340.0,111330.0,0.08688475]
[1756121737118,0.18466147,111340.0,111330.0,0.08888475]
[1756121737698,0.18466147,111340.0,111330.0,0.08688475]
[1756121737898,0.17964609,111330.0,111320.0,0.01]
[1756121738064,0.18163609,111330.0,111320.0,0.09688475]
[1756121738273,0.18467609,111330.0,111320.0,0.09688475]
[1756121741010,0.18467609,111330.0,111320.0,0.09788475]
[1756121741201,0.20139356,111330.0,111320.0,0.09788475]
[1756121741636,0.20139356,111330.0,111320.0,0.09688475]
[1756121742089,0.20139356,111330.0,111320.0,0.09788475]
[1756121742314,0.57949606,111330.0,111320.0,0.011]
[1756121742537,0.58786636,111330.0,111320.0,0.011]
[1756121742986,0.58788917,111330.0,111320.0,0.011]
[1756121743432,0.54978667,111330.0,111320.0,0.011]
[1756121743861,0.54978667,111330.0,111320.0,0.01]
[1756121744438,0.55078667,111330.0,111320.0,0.01]
[1756121745179,0.56484378,111330.0,111320.0,0.01]
[1756121746060,5.6517489,111330.0,111320.0,0.01]
[1756121746297,0.57116187,111330.0,111320.0,0.01]
[1756121746724,0.56486415,111330.0,111320.0,0.01]
[1756121747360,0.04521806,111330.0,111320.0,0.01]
[1756121747606,0.04322806,111330.0,111320.0,0.09688475]
[1756121747844,0.04018806,111330.0,111320.0,0.09688475]
[1756121748071,0.02613095,111330.0,111320.0,0.09688475]
[1756121748292,0.20913276,111330.0,111320.0,0.09688475]
[1756121748538,0.21098704,111330.0,111320.0,0.09688475]
[1756121748752,0.02613095,111330.0,111320.0,0.09688475]
[1756121749373,0.001,111330.0,111320.0,0.09688475]
[1756121749573,0.02621951,111330.0,111320.0,0.09688475]
[1756121749993,0.2058656,111330.0,111320.0,0.09688475]
[1756121750200,0.20586477,111330.0,111320.0,0.09688475]
[1756121750401,0.21107477,111330.0,111320.0,0.09688475]
[1756121750759,0.03142868,111330.0,111320.0,0.09688475]
[1756121750963,0.17963147,111340.0,111320.0,0.09688475]
[1756121750964,0.51963147,111340.0,111320.0,0.09886475]
[1756121751198,0.52803721,111340.0,111320.0,0.10949813]
[1756121751407,0.52803721,111340.0,111320.0,0.11265813]
[1756121751604,0.34840574,111340.0,111330.0,0.09229032]
[1756121751973,0.00840574,111340.0,111330.0,0.11171934]
[1756121752156,0.00840574,111340.0,111330.0,0.11378192]
[1756121752370,0.00840574,111340.0,111330.0,0.15229968]
[1756121754597,0.00840574,111340.0,111330.0,0.15329968]
[1756121755471,0.00840574,111340.0,111330.0,0.15429968]
[1756121756186,0.00840574,111340.0,111330.0,0.14683153]
[1756121756380,0.01045574,111340.0,111330.0,0.14683153]
[1756121756590,0.00840574,111340.0,111330.0,0.14683153]
[1756121757030,0.01045574,111340.0,111330.0,0.10831377]
[1756121757251,0.1932457,111340.0,111330.0,0.08888475]
[1756121757879,0.1932457,111340.0,111330.0,0.002]
[1756121759361,0.18483996,111340.0,111330.0,0.002]
[1756121760462,0.52483996,111340.0,111330.0,0.002]
[1756121760690,0.59669101,111340.0,111330.0,0.002]
[1756121760956,0.52483996,111340.0,111330.0,0.002]
[1756121762540,0.34,111340.0,111330.0,0.09086475]
[1756121762774,0.17962996,111340.0,111330.0,0.09086475]
[1756121762975,0.20484494,111340.0,111330.0,0.09086475]
[1756121763609,0.02521498,111340.0,111330.0,0.09086475]
[1756121763816,0.02521498,111340.0,111330.0,0.09311032]
[1756121764028,0.02521498,111340.0,111330.0,0.09627032]
[1756121764456,0.02521498,111340.0,111330.0,0.11400752]
[1756121764904,0.01680999,111340.0,111330.0,0.13351912]
[1756121765797,0.01680999,111340.0,111330.0,0.30885706]
[1756121766018,0.01680999,111340.0,111330.0,0.57705706]
[1756121766254,0.01473616,111360.0,111340.0,0.01744902]
[1756121766459,0.0399596,111360.0,111350.0,0.08688475]
[1756121766670,0.0399596,111360.0,111350.0,0.08886475]
[1756121766879,0.0399596,111360.0,111350.0,0.09110992]
[1756121767332,0.02590563,111360.0,111350.0,0.10855894]
[1756121767603,0.01749782,111360.0,111350.0,0.1502897]
[1756121767819,0.01749314,111360.0,111350.0,0.1502897]
[1756121768035,0.01749314,111360.0,111350.0,0.1471297]
[1756121768482,0.01749314,111360.0,111350.0,0.1502897]
[1756121768677,0.00068219,111360.0,111350.0,0.1502897]
[1756121770018,0.00068219,111360.0,111350.0,0.1512897]
[1756121770246,0.37541223,111380.0,111360.0,0.01744902]
[1756121770471,0.57715819,111380.0,111370.0,0.08688475]
[1756121770689,0.57919819,111380.0,111370.0,0.08688475]
[1756121771057,0.58238819,111380.0,111370.0,0.08688475]
[1756121771306,0.57399026,111380.0,111370.0,0.08688475]
[1756121771729,0.57399026,111380.0,111370.0,0.09731813]
[1756121771885,0.55993793,111380.0,111370.0,0.09731813]
[1756121772263,0.54314207,111380.0,111370.0,0.09731813]
[1756121772902,0.54314207,111380.0,111370.0,0.08688475]
[1756121773503,0.54414207,111380.0,111370.0,0.08688475]
[1756121774349,0.54314207,111380.0,111370.0,0.08688475]
[1756121775261,0.34218456,111380.0,111370.0,0.08904475]
[1756121775509,0.00014456,111380.0,111370.0,0.10649377]
[1756121775714,0.00014456,111380.0,111370.0,0.14468637]
[1756121776146,0.00114456,111380.0,111370.0,0.10649377]
[1756121776580,0.00114456,111380.0,111370.0,0.10947377]
[1756121776792,0.00114456,111380.0,111370.0,0.11377991]
[1756121777194,0.00014456,111380.0,111370.0,0.29336148]
[1756121777404,0.00014456,111380.0,111370.0,0.37592499]
[1756121777614,0.00014456,111380.0,111370.0,0.37692499]
[1756121777823,0.00014456,111380.0,111370.0,0.57692499]
[1756121778672,0.00014456,111380.0,111370.0,0.59512036]
[1756121779101,0.00014456,111380.0,111370.0,1.43419994]
[1756121779509,0.00014456,111380.0,111370.0,0.59512036]
[1756121779935,0.00014456,111380.0,111370.0,1.70439994]
[1756121780177,0.00014456,111380.0,111370.0,2.02619994]
[1756121780591,0.00014456,111380.0,111370.0,2.22619994]
[1756121780831,0.00014456,111380.0,111370.0,2.23019994]
[1756121781040,0.00014456,111380.0,111370.0,2.22719994]
[1756121781263,0.00014456,111380.0,111370.0,2.85150277]
[1756121781519,0.00897263,111450.0,111400.0,1.03606181]
[1756121781731,0.20172883,111450.0,111420.0,0.01744902]
[1756121781943,0.17961348,111440.0,111430.0,0.08894431]
[1756121782148,0.18165348,111440.0,111430.0,0.08894431]
[1756121782358,0.18165348,111440.0,111430.0,0.08688475]
[1756121782804,0.181509,111440.0,111430.0,0.08688475]
[1756121783231,0.17948487,111430.0,111420.0,0.01744902]
[1756121783447,0.18152487,111430.0,111420.0,0.08688475]
[1756121783658,0.18402487,111430.0,111420.0,0.08688475]
[1756121784334,0.18402487,111430.0,111400.0,0.30071478]
[1756121784335,0.17951543,111420.0,111400.0,0.30071478]
[1756121784560,0.18844243,111440.0,111410.0,0.10947377]
[1756121784779,0.17948563,111430.0,111410.0,0.14592977]
[1756121785228,0.18267563,111430.0,111420.0,0.001]
[1756121785446,0.18403563,111430.0,111420.0,0.08788475]
[1756121785873,0.18084563,111430.0,111420.0,0.08788475]
[1756121786094,0.18084563,111430.0,111420.0,0.08688475]
[1756121786989,0.19236954,111430.0,111420.0,0.08888475]
[1756121787202,0.18401563,111430.0,111420.0,0.08888475]
[1756121787383,0.19236957,111430.0,111420.0,0.08888475]
[1756121788731,0.19236957,111430.0,111420.0,0.08988475]
[1756121788855,0.18919957,111430.0,111420.0,0.08988475]
[1756121789055,0.19236957,111430.0,111420.0,0.08988475]
[1756121790532,0.23045077,111430.0,111420.0,0.08988475]
[1756121790704,0.19236957,111430.0,111420.0,0.08988475]
[1756121791716,0.18919881,111430.0,111420.0,0.08988475]
[1756121791944,0.00971394,111430.0,111420.0,0.08988475]
[1756121792160,0.00835394,111430.0,111420.0,0.11247377]
[1756121793137,0.00971394,111430.0,111420.0,0.11247377]
[1756121793335,0.00835394,111430.0,111420.0,0.11247377]
[1756121793919,0.00835394,111430.0,111420.0,0.14210324]
[1756121794592,0.179469,111440.0,111420.0,0.14210324]
[1756121794782,0.19619307,111440.0,111430.0,0.08688475]
[1756121795001,0.19755307,111440.0,111430.0,0.08688475]
[1756121795445,0.19755284,111440.0,111430.0,0.08688475]
[1756121795859,0.20072284,111440.0,111430.0,0.08688475]
[1756121796292,0.01672407,111440.0,111430.0,0.12297009]
[1756121796505,0.01672407,111440.0,111430.0,0.30245496]
[1756121796730,0.16864549,111460.0,111430.0,0.12297009]
[1756121796957,0.17945312,111450.0,111440.0,0.00224335]
[1756121797174,0.20454905,111450.0,111440.0,0.08986475]
[1756121797377,0.20590905,111450.0,111440.0,0.09202475]
[1756121797599,0.20590905,111450.0,111440.0,0.08904475]
[1756121797832,0.20591069,111450.0,111440.0,0.08688475]
[1756121798748,0.20910069,111450.0,111440.0,0.08688475]
[1756121799456,0.20591069,111450.0,111440.0,0.08688475]
[1756121800294,0.20591935,111450.0,111440.0,0.08902475]
[1756121800707,0.20672935,111450.0,111440.0,0.09223475]
[1756121800913,0.20455935,111450.0,111440.0,0.10477712]
[1756121801557,0.20455935,111450.0,111440.0,0.09223475]
[1756121801770,0.20455935,111450.0,111440.0,0.10968377]
[1756121802645,0.20455935,111450.0,111440.0,0.11168377]
[1756121802885,0.20455935,111450.0,111440.0,0.11146]
[1756121803100,0.20659935,111450.0,111440.0,0.11246]
[1756121803307,0.20659935,111450.0,111440.0,0.12184563]
[1756121803531,0.20659935,111450.0,111440.0,0.10925]
[1756121804631,0.20969935,111450.0,111440.0,0.10711]
[1756121806213,0.20969935,111450.0,111440.0,0.08966098]
[1756121806415,0.54969935,111450.0,111440.0,0.003]
[1756121806617,0.6417095,111450.0,111440.0,0.003]
[1756121806852,0.65015284,111450.0,111440.0,0.003]
[1756121807274,0.65015284,111450.0,111440.0,0.002]
[1756121807568,0.65015868,111450.0,111440.0,0.002]
[1756121808022,0.57676007,111450.0,111440.0,0.002]
[1756121808396,0.17948487,111430.0,111420.0,0.2682]
[1756121808689,0.20684528,111430.0,111420.0,0.35522923]
[1756121809073,0.20684528,111430.0,111420.0,0.35736923]
[1756121809606,0.20467528,111430.0,111420.0,0.37802825]
[1756121809813,0.20467528,111430.0,111420.0,0.41783107]
[1756121810019,0.025198,111430.0,111420.0,0.14963107]
[1756121810186,0.025198,111430.0,111420.0,0.22503632]
[1756121810594,0.025198,111430.0,111420.0,0.2217327]
[1756121810816,0.01678979,111430.0,111420.0,0.2217327]
[1756121811015,0.01678979,111430.0,111420.0,0.40123368]
[1756121811399,0.01678979,111430.0,111420.0,0.2217327]
[1756121811808,0.19627466,111430.0,111420.0,0.18392988]
[1756121812016,0.19844466,111430.0,111420.0,0.10747825]
[1756121812286,0.19844466,111430.0,111420.0,0.10961825]
[1756121812506,0.19844466,111430.0,111420.0,0.11282825]
[1756121812646,0.19844466,111430.0,111420.0,0.10747825]
[1756121813283,0.19844466,111430.0,111420.0,0.10961825]
[1756121813491,0.19627466,111430.0,111420.0,0.15277694]
[1756121813721,0.19627466,111430.0,111420.0,0.15071708]
[1756121814057,0.19627466,111430.0,111420.0,0.11282825]
[1756121815484,0.01178979,111430.0,111420.0,0.11282825]
[1756121815690,0.01178979,111430.0,111420.0,0.36343086]
[1756121816485,0.17945266,111450.0,111430.0,0.01744902]
[1756121816653,0.18786397,111450.0,111440.0,0.09223475]
[1756121816859,0.19003397,111450.0,111440.0,0.10363343]
[1756121817644,0.19003397,111450.0,111440.0,0.12108245]
[1756121817844,0.18786397,111450.0,111440.0,0.12108245]
[1756121818044,0.00841131,111450.0,111440.0,0.12108245]
[1756121818246,0.00941131,111450.0,111440.0,0.12108245]
[1756121818506,0.00941131,111450.0,111440.0,0.10968377]
[1756121818647,0.18786397,111450.0,111440.0,0.10968377]
[1756121819101,0.00941131,111450.0,111440.0,0.10968377]
[1756121819447,0.00841131,111450.0,111440.0,0.10968377]
[1756121819873,0.14244122,111460.0,111450.0,0.01744902]
[1756121820172,0.00841212,111460.0,111450.0,0.12669916]
[1756121820382,0.18784868,111460.0,111450.0,0.1246402]
[1756121821246,0.00841212,111460.0,111450.0,0.1246402]
[1756121821692,0.18784868,111460.0,111450.0,0.1246402]
[1756121821925,0.17968874,111470.0,111450.0,0.11192692]
[1756121822139,0.18810062,111470.0,111460.0,0.08894347]
[1756121822362,0.18940062,111470.0,111460.0,0.09008347]
[1756121822581,0.18810062,111470.0,111460.0,0.09008347]
[1756121822789,0.18810062,111470.0,111460.0,0.10427103]
[1756121823223,0.17968874,111470.0,111460.0,0.10427103]
[1756121823678,0.18068874,111470.0,111460.0,0.15427103]
[1756121824402,0.18185874,111470.0,111460.0,0.15427103]
[1756121824605,0.17968874,111470.0,111460.0,0.15427103]
[1756121824826,0.0002,111470.0,111460.0,0.15427103]
[1756121825023,0.0012,111470.0,111460.0,0.17172005]
[1756121825226,0.18279047,111470.0,111460.0,0.16645133]
[1756121825431,0.18179047,111470.0,111460.0,0.16645133]
[1756121825645,0.17962047,111470.0,111460.0,0.16966133]
[1756121826057,0.0002,111470.0,111460.0,0.16966133]
[1756121826255,0.17962047,111470.0,111460.0,0.15868377]
[1756121826765,0.18179047,111470.0,111460.0,0.15868377]
[1756121826970,0.18279047,111470.0,111460.0,0.15868377]
[1756121827375,0.0012,111470.0,111460.0,0.15868377]
[1756121827580,0.0002,111470.0,111460.0,0.15868377]
[1756121827777,0.0002,111470.0,111460.0,0.17498235]
[1756121827978,0.0002,111470.0,111460.0,0.24608398]
[1756121829415,0.17962047,111470.0,111460.0,0.24608398]
[1756121829644,0.18173047,111470.0,111460.0,0.2295754]
[1756121829855,0.18482047,111470.0,111460.0,0.2274354]
[1756121830227,0.18482047,111470.0,111460.0,0.13888475]
[1756121831055,0.18482047,111470.0,111460.0,0.13688475]
[1756121831636,0.18482047,111470.0,111460.0,0.13588475]
[1756121833574,0.18482047,111470.0,111460.0,0.05]
[1756121834012,0.54160843,111470.0,111460.0,0.05]
[1756121834870,0.52482047,111470.0,111460.0,0.05]
[1756121835084,0.54160943,111470.0,111460.0,0.05]
[1756121835332,0.52482047,111470.0,111460.0,0.05]
[1756121836092,0.52582047,111470.0,111460.0,0.05]
[1756121836993,0.54085999,111470.0,111460.0,0.05]
[1756121837268,0.19776999,111470.0,111460.0,0.05]
[1756121837682,0.20085999,111470.0,111460.0,0.05]
[1756121837883,0.19776999,111470.0,111460.0,0.05]
[1756121838429,0.01623952,111470.0,111460.0,0.14751775]
[1756121838706,0.01623952,111470.0,111460.0,0.1497607]
[1756121839190,0.0022,111470.0,111460.0,0.1497607]
[1756121839605,0.18162047,111470.0,111460.0,0.14220475]
[1756121839819,0.18682047,111470.0,111460.0,0.05005]
[1756121840147,0.52682047,111470.0,111460.0,0.05005]
[1756121840341,0.52582047,111470.0,111460.0,0.05005]
[1756121840815,0.52582047,111470.0,111460.0,0.05105]
[1756121841099,0.52482047,111470.0,111460.0,0.05105]
[1756121841604,0.59898903,111470.0,111460.0,0.05105]
[1756121842021,0.59898903,111470.0,111460.0,0.05005]
[1756121842161,0.52582047,111470.0,111460.0,0.05005]
[1756121842396,0.52682047,111470.0,111460.0,0.05005]
[1756121844259,0.55379247,111470.0,111460.0,0.05005]
[1756121846667,0.54879247,111470.0,111460.0,0.05005]
[1756121847098,0.62306526,111470.0,111460.0,0.05005]
[1756121847566,0.63988635,111470.0,111460.0,0.05005]
[1756121848364,0.62306526,111470.0,111460.0,0.05005]
[1756121848582,0.63988602,111470.0,111460.0,0.05005]
[1756121849347,0.54570247,111470.0,111460.0,0.05005]
[1756121849701,0.54879247,111470.0,111460.0,0.05005]
[1756121850158,0.54570247,111470.0,111460.0,0.05005]
[1756121852716,0.54879247,111470.0,111460.0,0.05005]
[1756121854902,0.56283221,111470.0,111460.0,0.05005]
[1756121855599,0.63710505,111470.0,111460.0,0.05005]
[1756121859182,0.56283221,111470.0,111460.0,0.05005]
[1756121859442,0.55974221,111470.0,111460.0,0.05513]
[1756121862975,0.55763221,111470.0,111460.0,0.05513]
[1756121863193,0.19066021,111470.0,111460.0,0.14201475]
[1756121863412,0.17662047,111470.0,111460.0,0.14201475]
[1756121863641,0.002,111470.0,111460.0,0.15946377]
[1756121863906,0.18142047,111470.0,111460.0,0.15946377]
[1756121864139,0.17942047,111470.0,111460.0,0.15946377]
[1756121864362,0.18042047,111470.0,111460.0,0.15946377]
[1756121864802,0.17942047,111470.0,111460.0,0.15946377]
[1756121865489,0.17942047,111470.0,111460.0,0.17541015]
[1756121865919,0.18251047,111470.0,111460.0,0.13907475]
[1756121866146,0.18251047,111470.0,111460.0,0.05005]
[1756121866360,0.21253247,111470.0,111460.0,0.05005]
[1756121866586,0.21153247,111470.0,111460.0,0.05005]
[1756121866823,0.1984931,111470.0,111460.0,0.05105]
[1756121867057,0.23773589,111470.0,111460.0,0.05105]
[1756121867642,0.1984931,111470.0,111460.0,0.05005]
[1756121868089,0.5384931,111470.0,111460.0,0.05005]
[1756121870565,0.5394931,111470.0,111460.0,0.05005]
[1756121871311,0.5404931,111470.0,111460.0,0.05005]
[1756121871733,0.5404931,111470.0,111460.0,0.05508]
[1756121877617,0.52142047,111470.0,111460.0,0.05508]
[1756121880581,0.51968958,111470.0,111460.0,0.05508]
[1756121880789,0.5129463,111470.0,111460.0,0.05508]
[1756121881606,0.5129463,111470.0,111460.0,0.060588]
[1756121882257,0.1729463,111470.0,111460.0,0.05508]
[1756121882666,0.17225202,111470.0,111460.0,0.05005]
[1756121882885,0.51225202,111470.0,111460.0,0.05005]
[1756121883123,0.52777411,111470.0,111460.0,0.05205]
[1756121883310,0.55479725,111470.0,111460.0,0.05205]
[1756121883914,0.62826659,111470.0,111460.0,0.05205]
[1756121884063,0.62826659,111470.0,111460.0,0.05105]
[1756121884437,0.71515134,111470.0,111460.0,0.05105]
[1756121884637,0.64799276,111470.0,111460.0,0.05005]
[1756121884889,0.641682,111470.0,111460.0,0.05005]
[1756121885656,0.6479922,111470.0,111460.0,0.05005]
[1756121886106,0.60715893,111470.0,111460.0,0.05005]
[1756121886264,0.60184873,111470.0,111460.0,0.05005]
[1756121886463,0.53100417,111470.0,111460.0,0.05005]
[1756121887580,0.53100417,111470.0,111460.0,0.05508]
[1756121888033,0.51417636,111470.0,111460.0,0.05508]
[1756121888249,0.2234838,111470.0,111460.0,0.05508]
[1756121888870,0.2224838,111470.0,111460.0,0.05508]
[1756121889070,0.5624838,111470.0,111460.0,0.05508]
[1756121889399,0.5634838,111470.0,111460.0,0.05508]
[1756121890043,0.5624838,111470.0,111460.0,0.05508]
[1756121890483,0.5604838,111470.0,111460.0,0.05608]
[1756121891256,0.5624838,111470.0,111460.0,0.05608]
[1756121891434,0.5604838,111470.0,111460.0,0.05608]
[1756121892428,0.5594838,111470.0,111460.0,0.05608]
[1756121897976,0.5594838,111470.0,111460.0,0.061688]
[1756121898137,0.5594838,111470.0,111460.0,0.14296475]
[1756121898138,0.53346066,111470.0,111460.0,0.14296475]
[1756121898346,0.53346066,111470.0,111460.0,0.1452077]
[1756121899563,0.53346066,111470.0,111460.0,0.14296475]
[1756121903574,0.19346066,111470.0,111460.0,0.14296475]
[1756121903997,0.19346066,111470.0,111460.0,0.15748554]
[1756121904211,0.17942047,111470.0,111460.0,0.15748554]
[1756121904426,0.17942047,111470.0,111460.0,0.14296475]
[1756121906388,0.17541314,111470.0,111460.0,0.14296475]
[1756121906606,0.17369377,111470.0,111460.0,0.14496475]
[1756121907014,0.12369377,111470.0,111460.0,0.14496475]
[1756121907230,0.12369377,111470.0,111460.0,0.14396475]
[1756121907560,0.12369377,111470.0,111460.0,0.15836123]
[1756121907787,0.12499949,111470.0,111460.0,0.13993475]
[1756121907956,0.12499949,111470.0,111460.0,0.14488475]
[1756121908645,0.12369377,111470.0,111460.0,0.14488475]
[1756121908868,0.12499949,111470.0,111460.0,0.14488475]
[1756121909109,0.12499949,111470.0,111460.0,0.15937323]
[1756121909358,0.12239162,111470.0,111460.0,0.15937323]
[1756121909825,0.12369734,111470.0,111460.0,0.15937323]
[1756121910040,0.1233847,111470.0,111460.0,0.14488475]
[1756121911119,0.12207898,111470.0,111460.0,0.14488475]
[1756121917592,0.12207898,111470.0,111460.0,0.13993475]
[1756121917844,0.4633847,111470.0,111460.0,0.05305]
[1756121918129,0.46207898,111470.0,111460.0,0.05305]
[1756121918765,0.46207898,111470.0,111460.0,0.05205]
[1756121920397,0.46207898,111470.0,111460.0,0.05005]
[1756121920814,0.48905098,111470.0,111460.0,0.05005]
[1756121921030,0.20639247,111470.0,111460.0,0.05498]
[1756121921254,0.17942047,111470.0,111460.0,0.060478]
[1756121921460,0.20638947,111470.0,111460.0,0.060478]
[1756121921596,0.17942047,111470.0,111460.0,0.05498]
[1756121921796,0.17942047,111470.0,111460.0,0.05005]
[1756121921995,0.17942047,111470.0,111460.0,0.13693475]
[1756121922197,0.17942047,111470.0,111460.0,0.05005]
[1756121922452,0.21804903,111470.0,111460.0,0.05005]
[1756121922619,0.17942047,111470.0,111460.0,0.05005]
[1756121923018,0.17942047,111470.0,111460.0,0.05498]
[1756121924796,0.17942047,111470.0,111460.0,0.14186475]
[1756121926124,0.17942047,111470.0,111460.0,0.13990475]
[1756121926342,0.17942047,111470.0,111460.0,0.14186475]
[1756121927185,0.21804903,111470.0,111460.0,0.05005]
[1756121927388,0.17942047,111470.0,111460.0,0.05005]
[1756121928673,0.20639347,111470.0,111460.0,0.05005]
[1756121928881,0.20739347,111470.0,111460.0,0.05005]
[1756121929261,0.20839347,111470.0,111460.0,0.05005]
[1756121931773,0.20839347,111470.0,111460.0,0.05302]
[1756121931984,0.20839347,111470.0,111460.0,0.05005]
[1756121932256,0.20839347,111470.0,111460.0,0.05498]
[1756121932471,0.18142047,111470.0,111460.0,0.05498]
[1756121933989,0.22165325,111470.0,111460.0,0.05005]
[1756121934413,0.24862525,111470.0,111460.0,0.05005]
[1756121934617,0.24862525,111470.0,111460.0,0.05302]
[1756121935055,0.20839247,111470.0,111460.0,0.05302]
[1756121937714,0.20839247,111470.0,111460.0,0.05005]
[1756121938733,0.22522778,111470.0,111460.0,0.05005]
[1756121940108,5.31211253,111470.0,111460.0,0.05005]
[1756121940533,5.32684279,111470.0,111460.0,0.05005]
[1756121940734,5.41371244,111470.0,111460.0,0.05005]
[1756121940941,5.40739913,111470.0,111460.0,0.05005]
[1756121941169,5.4137126,111470.0,111460.0,0.05005]
[1756121941720,5.41371301,111470.0,111460.0,0.05005]
[1756121942136,5.75371301,111470.0,111460.0,0.05005]
[1756121942910,0.17945266,111450.0,111440.0,0.07110163]
[1756121943118,0.24216681,111450.0,111440.0,0.07110163]
[1756121943317,0.17945266,111450.0,111440.0,0.07110163]
[1756121943732,0.22047354,111450.0,111440.0,0.07110163]
[1756121944282,0.22047354,111450.0,111440.0,0.07407163]
[1756121944490,0.22147354,111450.0,111440.0,0.07407163]
[1756121944928,0.30425447,111450.0,111440.0,0.07407163]
[1756121945156,0.30425447,111450.0,111440.0,0.07110163]
[1756121945157,0.30325447,111450.0,111440.0,0.07110163]
[1756121945895,0.30325447,111450.0,111440.0,0.07407163]
[1756121948101,0.30325447,111450.0,111440.0,0.07110163]
[1756121948311,0.30325447,111450.0,111440.0,0.07407163]
[1756121951053,0.17948487,111430.0,111420.0,0.07110163]
[1756121951326,0.58628774,111430.0,111420.0,0.07110163]
[1756121951524,0.58628774,111430.0,111420.0,0.07311163]
[1756121951752,0.61327074,111430.0,111420.0,0.07613163]
[1756121952371,0.61327074,111430.0,111420.0,0.07727611]
[1756121953061,0.51948487,111430.0,111420.0,0.07727611]
[1756121953512,0.51948487,111430.0,111420.0,0.07827611]
[1756121953966,0.51948487,111430.0,111420.0,0.07727611]
[1756121954088,0.51948487,111430.0,111420.0,0.07827611]
[1756121954329,0.53310988,111430.0,111420.0,0.07727611]
[1756121954770,0.53310988,111430.0,111420.0,0.07827611]
[1756121954962,0.62111152,111430.0,111420.0,0.00214448]
[1756121955352,0.64809552,111430.0,111420.0,0.00214448]
[1756121955666,5.64809552,111430.0,111420.0,0.00214448]
[1756121956013,5.64809552,111430.0,111420.0,0.00114448]
[1756121956233,5.66488872,111430.0,111420.0,0.00114448]
[1756121956429,5.66488872,111430.0,111420.0,0.00014448]
[1756121957087,0.64809552,111430.0,111420.0,0.00316448]
[1756121957632,0.64809552,111430.0,111420.0,0.05316448]
[1756121958694,0.64809552,111430.0,111420.0,0.05014448]
[1756121959140,0.66487594,111430.0,111420.0,0.05014448]
[1756121959356,0.66487594,111430.0,111420.0,0.05316448]
[1756121959604,0.64809552,111430.0,111420.0,0.05316448]
[1756121959764,0.66587594,111430.0,111420.0,0.05014448]
[1756121959971,0.66587594,111430.0,111420.0,0.05316448]
[1756121960599,0.66787594,111430.0,111420.0,0.05316448]
[1756121961028,0.66587594,111430.0,111420.0,0.05316448]
[1756121961442,0.66587594,111430.0,111420.0,0.05014448]
[1756121961636,0.66487594,111430.0,111420.0,0.05014448]
[1756121961970,0.66487594,111430.0,111420.0,0.05517448]
[1756121962396,0.66487594,111430.0,111420.0,0.05316448]
[1756121963242,0.66487594,111430.0,111420.0,0.05014448]
[1756121963467,5.66487594,111430.0,111420.0,0.05014448]
[1756121964107,5.75176069,111430.0,111420.0,0.05014448]
[1756121964762,5.73771667,111430.0,111420.0,0.05014448]
[1756121965214,5.74611017,111430.0,111420.0,0.05014448]